bitfinex/quotes_ETHUSD_20251008
["timestamp","ask_amount","ask_price","bid_price","bid_amount"]
[1759935720520,0.6336,4460.7,4459.1,2.226]
[1759935720724,2.2417714,4460.8,4459.1,0.01]
[1759935720725,0.6336,4460.5,4459.1,0.01]
[1759935720888,0.00959484,4460.4,4459.1,0.44870033]
[1759935721090,0.00879484,4460.4,4459.1,0.01]
[1759935721523,1.0837,4460.3,4459.1,0.01]
[1759935721685,0.6336,4459.8,4459.1,2.25259437]
[1759935722016,0.00879484,4459.7,4459.1,0.01]
[1759935722216,0.00879484,4459.7,4459.1,2.25260116]
[1759935722429,0.00879484,4459.7,4459.2,2.24255471]
[1759935722631,0.00879484,4459.7,4459.3,2.24250442]
[1759935722846,0.00879484,4459.8,4459.3,2.24250442]
[1759935722992,0.231,4460.2,4459.1,0.01]
[1759935722993,0.00879484,4460.1,4459.1,0.01]
[1759935723323,0.6336,4460.0,4459.3,2.24245842]
[1759935723619,0.36648751,4460.1,4459.1,0.01]
[1759935723620,0.6336,4459.8,4459.1,0.01]
[1759935723830,0.6336,4459.5,4459.1,0.01]
[1759935724003,0.00879484,4459.4,4459.1,0.01]
[1759935724526,0.231,4459.9,4459.1,0.01]
[1759935724527,0.6336,4459.2,4459.1,0.01]
[1759935724686,3.24971955,4459.2,4459.1,0.01]
[1759935724887,1.45726484,4459.2,4459.1,0.01]
[1759935725334,3.69981955,4459.2,4459.1,0.01]
[1759935725849,1.45726484,4459.2,4459.1,0.01]
[1759935726654,0.00879484,4459.3,4459.2,2.24255471]
[1759935726865,0.00879484,4459.3,4459.1,0.01]
[1759935726866,0.112,4459.2,4459.1,2.252605]
[1759935727718,0.00879484,4460.1,4459.8,2.24224542]
[1759935727920,0.112,4459.8,4459.7,2.24229978]
[1759935728153,0.112,4459.6,4459.1,0.01]
[1759935728561,0.45889484,4459.5,4459.1,0.01]
[1759935728878,0.6336,4459.4,4459.1,0.01]
[1759935729051,0.11957,4459.3,4459.1,0.01]
[1759935729233,0.00879484,4459.2,4459.1,0.01]
[1759935729433,0.45889484,4459.2,4459.1,0.01]
[1759935729629,3.02289484,4459.2,4459.1,0.01]
[1759935729845,0.00879484,4459.6,4459.1,2.252605]
[1759935730049,0.6336,4459.4,4459.1,0.01]
[1759935730253,0.00879484,4459.3,4459.1,0.01]
[1759935730425,3.32625471,4459.2,4459.1,0.01]
[1759935730759,0.6336,4458.9,4458.3,0.0754]
[1759935731066,0.4501,4459.2,4458.3,0.0754]
[1759935731067,0.6336,4458.7,4458.3,0.0754]
[1759935731362,0.6336,4458.5,4458.3,0.0754]
[1759935731568,0.00879484,4458.4,4458.3,0.0754]
[1759935731761,0.45889484,4458.4,4458.3,0.0754]
[1759935732051,1.09249484,4458.4,4458.3,0.0754]
[1759935736450,1.61803043,4458.4,4458.3,0.0754]
[1759935738078,3.8521927,4458.4,4458.3,0.0754]
[1759935738239,5.7721927,4458.4,4458.3,0.0754]
[1759935739158,8.3341927,4458.4,4458.3,0.0754]
[1759935739350,2.87665773,4458.2,4458.1,0.01]
[1759935739573,18.90867877,4457.9,4457.8,0.001]
[1759935739774,21.70167877,4457.9,4457.8,0.001]
[1759935739972,22.15177877,4457.9,4457.8,0.001]
[1759935740471,8.03990868,4457.9,4457.8,0.001]
[1759935741042,8.04090868,4457.9,4457.8,0.001]
[1759935741243,9.17185832,4457.9,4457.8,0.001]
[1759935741553,23.28372841,4457.9,4457.8,0.001]
[1759935742175,20.72072841,4457.9,4457.8,0.001]
[1759935742383,20.72072841,4457.9,4457.1,0.01]
[1759935742384,4.79700998,4457.5,4457.1,0.01]
[1759935742687,4.79716097,4457.2,4457.1,0.01]
[1759935742891,0.6336,4456.3,4456.1,0.01]
[1759935743188,7.36945928,4456.2,4456.1,0.01]
[1759935743473,7.81326444,4456.2,4456.1,0.01]
[1759935743888,5.5692,4456.2,4456.1,0.01]
[1759935744073,7.81326444,4456.2,4456.1,0.01]
[1759935744288,8.81818237,4456.2,4456.1,0.01]
[1759935744964,6.57411793,4456.2,4456.1,0.01]
[1759935745153,8.81818237,4456.2,4456.1,0.01]
[1759935746970,4.01111793,4456.2,4456.1,0.01]
[1759935747179,0.4526,4457.0,4456.1,0.01]
[1759935747486,0.4526,4456.5,4456.1,0.01]
[1759935747703,3.20439484,4456.4,4456.1,0.01]
[1759935748011,3.20439484,4456.4,4456.3,2.24401409]
[1759935748175,3.1956,4456.4,4456.1,0.01]
[1759935748379,0.112,4456.2,4456.1,2.2541148]
[1759935750407,0.7456,4456.2,4456.1,0.01]
[1759935750704,0.7456,4456.2,4456.1,2.2541148]
[1759935751186,0.112,4456.2,4456.1,2.70394225]
[1759935751390,0.112,4456.2,4456.1,2.72638339]
[1759935752613,0.112,4456.2,4456.1,2.70394225]
[1759935752830,0.112,4456.2,4456.1,0.01]
[1759935753032,0.112,4456.2,4454.5,2.2449188]
[1759935753033,2.5536,4456.1,4454.3,0.001]
[1759935753234,0.6336,4455.2,4454.3,0.001]
[1759935753377,7.35916814,4455.2,4454.3,0.001]
[1759935753586,0.6336,4454.6,4454.3,0.001]
[1759935753813,2.57079484,4454.5,4454.3,0.001]
[1759935753984,0.00879484,4455.1,4454.3,0.001]
[1759935754184,0.6336,4454.9,4454.3,0.001]
[1759935754385,0.64239484,4454.9,4454.4,2.24497126]
[1759935754580,0.64239484,4454.9,4454.3,0.001]
[1759935754581,0.64239484,4454.9,4454.5,2.24491379]
[1759935754787,3.1956,4455.0,4454.9,2.24471929]
[1759935754983,0.00879484,4455.4,4454.7,2.24480857]
[1759935755187,4.57757333,4457.2,4454.7,2.24480857]
[1759935755188,2.5536,4456.2,4455.4,2.24446705]
[1759935755388,2.57079484,4456.1,4455.2,0.02244568]
[1759935755701,0.6336,4455.9,4455.1,2.24461852]
[1759935755897,0.6336,4455.9,4454.4,2.24497126]
[1759935755898,2.562,4455.9,4455.2,2.26700612]
[1759935756094,0.00879484,4456.4,4456.0,2.24412014]
[1759935756290,0.01,4456.9,4455.6,2.24433986]
[1759935756291,0.00879484,4456.7,4455.6,2.24433986]
[1759935756623,2.562,4456.6,4456.3,2.24396974]
[1759935756825,2.562,4456.6,4456.4,2.24396373]
[1759935756826,0.00879484,4456.5,4456.4,2.24396373]
[1759935756991,0.00879484,4456.5,4455.8,2.2442659]
[1759935757191,0.00879484,4456.5,4455.6,0.22443399]
[1759935757519,0.64239484,4456.5,4455.7,2.244309]
[1759935757720,0.64239484,4456.5,4455.9,2.24420188]
[1759935758029,0.64239484,4456.5,4455.3,0.001]
[1759935758337,0.6336,4456.3,4455.8,2.24426155]
[1759935758513,0.00879484,4456.2,4455.9,2.24419661]
[1759935758831,0.00879484,4456.2,4455.9,2.24421553]
[1759935758832,0.6336,4456.0,4455.9,2.24421553]
[1759935759119,0.6336,4456.0,4455.3,0.001]
[1759935759322,0.6336,4456.0,4455.8,2.24424802]
[1759935759323,0.64239484,4456.0,4455.8,2.24424802]
[1759935759720,0.64239484,4456.0,4455.8,2.24425474]
[1759935760137,0.64239484,4456.0,4455.3,0.001]
[1759935760333,2.562,4456.1,4455.3,0.001]
[1759935760334,0.6336,4455.8,4455.4,2.24445217]
[1759935760509,0.00879484,4455.7,4455.3,0.001]
[1759935760706,0.00879484,4455.7,4455.4,2.24446738]
[1759935761028,0.00879484,4455.9,4455.3,0.001]
[1759935761193,0.00879484,4455.9,4455.8,2.2442659]
[1759935761396,0.6336,4456.0,4455.9,2.24421553]
[1759935761922,0.6336,4456.0,4455.3,0.001]
[1759935761923,0.64239484,4456.0,4455.3,0.001]
[1759935762113,0.64239484,4456.0,4455.9,2.24421553]
[1759935762316,0.64239484,4456.0,4455.3,0.001]
[1759935762514,0.64239484,4456.0,4455.9,2.24421553]
[1759935762721,0.6336,4456.0,4455.9,2.24421553]
[1759935762935,0.7456,4456.0,4455.3,0.113]
[1759935763240,0.7456,4456.0,4455.9,2.24421553]
[1759935763610,0.112,4456.0,4455.9,2.24421553]
[1759935763930,2.24352267,4457.3,4455.9,2.24421553]
[1759935763931,0.00879484,4457.0,4455.9,0.45109442]
[1759935764239,0.00879484,4457.0,4455.3,2.24549338]
[1759935764240,2.562,4456.8,4456.7,2.24381268]
[1759935764415,3.1956,4456.8,4456.7,2.24381268]
[1759935764945,0.00879484,4457.4,4456.7,2.24381268]
[1759935764946,0.00879484,4457.4,4456.8,2.24376234]
[1759935765105,0.243,4457.9,4456.8,2.24376234]
[1759935765106,2.562,4457.3,4456.8,2.24376234]
[1759935765735,2.562,4457.3,4456.8,2.26619996]
[1759935766111,2.562,4457.3,4456.8,2.24376234]
[1759935766952,2.562,4457.3,4456.8,2.71496175]
[1759935767150,2.562,4457.3,4456.8,2.69252413]
[1759935767310,0.0092,4456.9,4456.8,2.69252413]
[1759935767961,0.0092,4456.9,4456.8,2.71496175]
[1759935768452,0.0092,4456.9,4456.8,2.69252413]
[1759935768639,0.0092,4456.9,4456.8,5.25252413]
[1759935769352,1e-08,4456.9,4456.8,5.25252413]
[1759935769720,0.012,4457.9,4457.6,2.24333026]
[1759935769921,0.012,4457.9,4456.9,2.24371199]
[1759935770126,0.012,4457.9,4457.8,2.243259]
[1759935770329,0.88829484,4457.9,4456.6,2.2438165]
[1759935770533,0.88829484,4457.9,4455.9,2.24418938]
[1759935770534,0.65439484,4457.9,4457.6,2.24335349]
[1759935770935,0.65439484,4457.9,4457.5,2.2433732]
[1759935771652,3.64489484,4457.9,4456.9,2.24371199]
[1759935771957,3.21439484,4457.9,4457.7,2.24327276]
[1759935772347,3.21439484,4457.9,4457.0,0.2243712]
[1759935772348,3.64489484,4457.9,4457.0,0.2243712]
[1759935772524,3.64489484,4457.9,4457.5,2.24340616]
[1759935772724,3.64489484,4457.9,4456.5,4.479]
[1759935772725,0.6336,4457.7,4457.4,2.24345769]
[1759935772924,0.00879484,4457.6,4457.4,2.24345769]
[1759935773125,0.64239484,4457.8,4457.6,2.24334382]
[1759935773637,0.64239484,4457.8,4457.7,2.24330932]
[1759935774156,0.112,4457.7,4457.6,2.2433479]
[1759935774356,0.112,4457.7,4457.5,2.24338521]
[1759935774758,0.112,4457.7,4457.3,2.24350804]
[1759935774957,0.112,4457.7,4456.9,2.35569757]
[1759935775126,0.112,4457.7,4456.9,0.60346976]
[1759935775323,0.112,4457.7,4457.4,2.24342247]
[1759935775760,0.112,4457.7,4456.9,0.60346976]
[1759935775927,0.112,4457.7,4456.9,2.84716103]
[1759935776123,0.112,4457.7,4457.0,2.24366165]
[1759935776468,0.112,4457.7,4457.0,2.52836448]
[1759935776671,0.112,4457.7,4457.0,0.28471314]
[1759935779274,1.18849484,4457.8,4457.7,2.24330932]
[1759935779803,1.18849484,4457.8,4457.6,2.24335236]
[1759935779960,0.4341,4457.7,4457.5,2.24339999]
[1759935780162,0.4341,4457.7,4457.2,2.24353788]
[1759935780409,0.4341,4457.7,4457.6,2.24335965]
[1759935780986,0.75439484,4457.8,4457.6,2.24335965]
[1759935781311,1.11012432,4457.8,4457.1,0.112]
[1759935781605,0.4341,4457.7,4457.1,0.112]
[1759935781964,0.4341,4457.7,4456.8,0.001]
[1759935781965,0.64239484,4457.6,4456.8,0.001]
[1759935782158,0.4341,4457.7,4456.8,0.001]
[1759935782159,0.6336,4456.9,4456.8,0.001]
[1759935782385,3.1916,4456.9,4456.8,2.24476234]
[1759935783162,0.112,4457.0,4456.9,2.24371199]
[1759935783387,0.012,4457.9,4456.9,2.71720335]
[1759935783588,3.1916,4457.8,4457.7,2.24330932]
[1759935783762,3.3036,4457.8,4457.7,2.24330932]
[1759935784158,2.558,4457.8,4457.7,2.24330932]
[1759935784581,0.012,4457.9,4457.8,2.243259]
[1759935785183,0.012,4457.9,4456.4,0.001]
[1759935785386,0.87329484,4457.8,4456.9,2.24371199]
[1759935785591,0.6336,4457.6,4456.6,2.24385751]
[1759935785768,0.64239484,4457.6,4456.4,4.80291599]
[1759935786088,0.64239484,4457.6,4457.3,2.24346875]
[1759935786289,1.07649484,4457.6,4456.7,2.24378339]
[1759935786671,1.07649484,4457.6,4457.3,2.2434727]
[1759935786978,0.4341,4457.5,4457.4,2.24346031]
[1759935787182,0.64239484,4457.6,4457.4,2.24346031]
[1759935787379,0.6336,4457.4,4456.4,0.001]
[1759935787604,0.00879484,4457.3,4456.4,0.001]
[1759935787799,0.6336,4457.1,4456.8,2.24475065]
[1759935787971,2.87731199,4456.9,4456.8,0.001]
[1759935788169,2.88610683,4456.9,4456.8,0.001]
[1759935788384,3.32020683,4456.9,4456.8,0.001]
[1759935788606,1.07649484,4456.9,4456.8,0.001]
[1759935788794,3.32020683,4456.9,4456.8,0.001]
[1759935789094,4.03702232,4456.9,4456.8,0.001]
[1759935789475,2.99649484,4456.9,4456.8,0.001]
[1759935790268,2.99569484,4456.9,4456.8,0.001]
[1759935790665,5.23940683,4456.9,4456.8,0.001]
[1759935790899,5.23061199,4456.9,4456.8,0.001]
[1759935791474,2.9869,4456.9,4456.8,0.001]
[1759935791703,6.05460599,4456.9,4456.8,0.001]
[1759935791905,6.04581115,4456.9,4456.8,0.001]
[1759935792272,8.60381115,4456.9,4456.8,0.001]
[1759935793500,6.36009916,4456.9,4456.8,0.001]
[1759935794399,8.60381115,4456.9,4456.8,0.001]
[1759935794816,6.36009916,4456.9,4456.8,0.001]
[1759935795118,4.9121,4456.9,4456.8,0.001]
[1759935795492,5.5457,4456.9,4456.8,0.001]
[1759935795816,2.9921,4456.9,4456.8,0.001]
[1759935796031,2.559,4456.9,4456.8,0.001]
[1759935796192,2.671,4456.9,4456.8,0.001]
[1759935796395,2.671,4456.9,4456.8,2.24474876]
[1759935796603,3.3046,4456.9,4456.8,2.24474876]
[1759935796809,2.671,4456.9,4456.8,2.24474876]
[1759935797386,2.559,4456.9,4456.8,2.69360863]
[1759935797592,0.112,4457.4,4456.8,0.001]
[1759935797593,0.6336,4457.0,4456.8,0.001]
[1759935797825,0.12079484,4456.9,4456.8,0.001]
[1759935798120,0.12079484,4456.9,4456.8,2.24476234]
[1759935798292,0.112,4456.9,4456.8,2.24476234]
[1759935798493,0.12079484,4456.9,4456.8,2.24476234]
[1759935798695,0.12079484,4456.9,4456.8,0.001]
[1759935799234,0.12079484,4456.9,4456.8,2.24476234]
[1759935799823,2.559,4457.1,4457.0,2.24366165]
[1759935800002,0.7456,4457.0,4456.8,0.001]
[1759935800210,0.00879484,4456.9,4456.8,0.001]
[1759935801116,0.00879484,4456.9,4456.8,2.24476234]
[1759935801629,0.7456,4457.0,4456.9,2.24371199]
[1759935802443,0.7456,4457.3,4457.2,2.24353155]
[1759935802636,3.3046,4457.3,4457.2,2.24353155]
[1759935802834,2.671,4457.3,4457.2,2.24353155]
[1759935804613,0.64439484,4457.8,4457.7,2.24330932]
[1759935804614,0.002,4457.8,4457.7,2.24330932]
[1759935804817,3.1936,4457.8,4457.7,2.24330932]
[1759935805616,0.112,4457.7,4457.6,2.24335318]
[1759935805821,2.56,4457.8,4457.7,2.24330932]
[1759935806734,0.002,4457.8,4457.7,2.24330932]
[1759935806926,0.002,4457.8,4457.7,2.69197557]
[1759935807340,0.002,4457.8,4457.7,2.24330932]
[1759935807520,0.002,4457.8,4457.7,2.26574241]
[1759935807839,0.002,4457.8,4457.7,2.83743912]
[1759935808161,0.002,4457.8,4457.7,2.81500603]
[1759935809538,0.002,4457.8,4457.7,2.24330932]
[1759935810151,0.002,4457.8,4457.4,0.112]
[1759935810459,0.002,4457.8,4457.7,2.24330932]
[1759935810655,0.002,4457.8,4457.4,0.3152]
[1759935810656,0.002,4457.8,4457.4,0.112]
[1759935810961,0.6336,4457.6,4456.6,2.2438261]
[1759935811163,0.00879484,4457.5,4457.3,2.24349036]
[1759935811455,0.00879484,4457.5,4456.6,2.2438261]
[1759935811456,2.56679484,4457.5,4457.4,2.24346031]
[1759935812026,2.558,4457.5,4457.4,2.24346031]
[1759935812756,2.558,4457.5,4457.3,2.24351011]
[1759935812944,2.558,4457.5,4457.4,2.24346031]
[1759935813337,2.5572,4457.5,4457.4,2.24346031]
[1759935813858,0.002,4457.8,4457.7,2.24330932]
[1759935814262,0.002,4457.8,4457.7,2.26574241]
[1759935814926,0.002,4457.8,4457.7,2.68959373]
[1759935815127,0.002,4457.8,4457.7,2.71202682]
[1759935815378,1e-08,4457.9,4457.8,2.243259]
[1759935815583,1e-08,4457.9,4457.8,2.9631255]
[1759935816978,1e-08,4457.9,4457.8,2.98555809]
[1759935817178,1e-08,4457.9,4457.8,2.9631255]
[1759935817774,1e-08,4457.9,4457.8,5.5211255]
[1759935818449,1e-08,4457.9,4457.8,2.9631255]
[1759935818865,1e-08,4457.9,4457.8,5.5211255]
[1759935819643,1e-08,4457.9,4457.8,7.4411255]
[1759935820680,1e-08,4457.9,4457.8,7.4401255]
[1759935820888,1e-08,4457.9,4457.8,7.5521255]
[1759935821297,1e-08,4457.9,4457.8,4.9951255]
[1759935821590,1e-08,4457.9,4457.8,7.5521255]
[1759935822587,1e-08,4457.9,4457.8,4.9951255]
[1759935822749,1e-08,4457.9,4457.8,6.832259]
[1759935823198,1e-08,4457.9,4457.8,4.275259]
[1759935823508,1e-08,4457.9,4457.8,6.832259]
[1759935824907,1e-08,4457.9,4457.8,6.720259]
[1759935825117,1e-08,4457.9,4457.8,6.832259]
[1759935825419,1e-08,4457.9,4457.8,8.00878219]
[1759935825773,1e-08,4457.9,4457.8,7.89678219]
[1759935826001,1e-08,4457.9,4457.8,5.33978219]
[1759935826275,1e-08,4457.9,4457.8,7.89678219]
[1759935826502,1e-08,4457.9,4457.8,5.33978219]
[1759935826910,1e-08,4457.9,4457.8,7.89678219]
[1759935827280,1e-08,4457.9,4457.8,5.33978219]
[1759935827486,1e-08,4457.9,4457.8,4.800259]
[1759935827684,1e-08,4457.9,4457.7,2.68959373]
[1759935827685,1e-08,4457.9,4457.7,0.44628441]
[1759935827898,1e-08,4457.9,4456.1,2.25409811]
[1759935828111,1e-08,4457.9,4457.6,2.24330973]
[1759935828480,1e-08,4457.9,4457.4,2.24345491]
[1759935828809,1e-08,4457.9,4457.5,2.24340925]
[1759935829012,1e-08,4457.9,4456.8,0.001]
[1759935829215,1e-08,4457.9,4457.0,2.557]
[1759935829412,1e-08,4457.9,4457.8,2.243259]
[1759935830521,1e-08,4457.9,4457.1,2.557]
[1759935831018,0.43590001,4457.9,4457.1,2.557]
[1759935831314,1e-08,4457.9,4457.1,4.48722262]
[1759935831530,1e-08,4457.9,4457.8,2.243259]
[1759935832610,1e-08,4457.9,4457.8,2.26569159]
[1759935832788,1e-08,4457.9,4457.8,2.7143527]
[1759935833294,1e-08,4457.9,4457.8,4.6343527]
[1759935833489,1e-08,4457.9,4457.8,4.61192011]
[1759935834509,1e-08,4457.9,4457.8,4.61292011]
[1759935834698,0.002,4458.0,4457.8,4.61292011]
[1759935834699,1e-08,4458.4,4458.3,2.24300742]
[1759935834922,1e-08,4458.4,4458.3,5.27104616]
[1759935835121,1e-08,4458.4,4458.3,5.24861609]
[1759935836020,1e-08,4458.4,4458.3,2.80361609]
[1759935836246,1e-08,4458.4,4458.3,5.36061609]
[1759935836522,0.00120001,4458.8,4458.7,2.24280619]
[1759935836727,0.00120001,4458.8,4458.7,2.35480619]
[1759935837409,0.00120001,4458.8,4458.7,3.07027461]
[1759935838121,0.00120001,4458.8,4458.7,5.62727461]
[1759935838899,0.00120001,4458.8,4458.7,3.07027461]
[1759935839094,0.00120001,4458.8,4458.7,2.35480619]
[1759935841126,0.00120001,4458.8,4458.7,2.24280619]
[1759935841314,0.00120001,4458.8,4458.7,4.82223425]
[1759935841518,1e-08,4458.9,4458.8,2.24275589]
[1759935841692,1e-08,4458.9,4458.8,4.16275589]
[1759935841897,1e-08,4458.9,4458.8,5.2944999]
[1759935842505,1e-08,4458.9,4458.8,7.8504999]
[1759935843029,1e-08,4458.9,4458.8,5.2944999]
[1759935843227,1e-08,4458.9,4458.8,7.8504999]
[1759935844807,1e-08,4458.9,4458.8,5.2944999]
[1759935845012,1e-08,4458.9,4458.8,7.8504999]
[1759935845450,1e-08,4458.9,4458.8,5.2944999]
[1759935845752,1e-08,4458.9,4458.8,7.8504999]
[1759935846246,1e-08,4458.9,4458.8,5.2944999]
[1759935846917,1e-08,4458.9,4458.8,2.24275589]
[1759935847118,1e-08,4458.9,4457.7,0.4545728]
[1759935847332,1e-08,4458.9,4458.8,2.24275589]
[1759935847731,1e-08,4458.9,4458.4,0.112]
[1759935847954,1e-08,4458.9,4458.6,2.2428565]
[1759935848159,1e-08,4458.9,4458.4,0.112]
[1759935848160,0.00879485,4458.9,4457.7,0.4545728]
[1759935848319,0.6336,4458.4,4457.7,0.4545728]
[1759935848518,0.112,4458.2,4457.7,0.4545728]
[1759935848724,0.112,4458.2,4457.9,2.24316686]
[1759935849040,0.5572,4458.2,4457.9,2.24316686]
[1759935849246,0.6336,4458.0,4457.3,0.001]
[1759935849424,0.00879484,4457.9,4457.3,0.001]
[1759935849624,1.1908,4458.0,4457.7,2.24326168]
[1759935849845,1.1908,4458.0,4457.8,2.24425412]
[1759935850046,1.1908,4458.0,4457.8,0.001]
[1759935850231,1.44397484,4457.9,4457.8,0.001]
[1759935851050,0.76147484,4457.9,4457.8,0.001]
[1759935851248,0.112,4458.0,4457.8,0.001]
[1759935851452,0.112,4458.0,4457.8,2.24425034]
[1759935851855,0.112,4458.0,4457.9,2.24320868]
[1759935852056,0.112,4458.0,4457.8,0.001]
[1759935853267,1.32489484,4457.9,4457.8,0.001]
[1759935853456,1.69309641,4457.9,4457.8,0.001]
[1759935853832,1.32489484,4457.9,4457.8,0.001]
[1759935854038,3.55930868,4457.9,4457.8,0.001]
[1759935854237,5.48810352,4457.9,4457.8,0.001]
[1759935854478,5.47930868,4457.9,4457.8,0.001]
[1759935854684,3.2361,4457.9,4457.8,0.001]
[1759935854983,0.64239484,4457.9,4457.8,0.001]
[1759935855144,2.556,4458.0,4457.8,0.001]
[1759935855145,2.56479484,4458.0,4457.9,2.24320868]
[1759935855470,2.56479484,4458.0,4457.8,0.001]
[1759935855656,1.3161,4457.9,4457.8,0.001]
[1759935856747,3.55930868,4457.9,4457.8,0.001]
[1759935857058,6.31622984,4457.9,4457.8,0.001]
[1759935857672,6.31622984,4457.9,4457.3,0.001]
[1759935857673,0.6336,4457.5,4457.3,0.001]
[1759935857868,2.87726165,4457.0,4456.8,0.001]
[1759935858050,5.44205649,4457.0,4456.8,0.001]
[1759935858252,5.87846165,4457.0,4456.8,0.001]
[1759935858452,6.69066402,4457.0,4456.8,0.001]
[1759935859480,6.68986402,4457.0,4456.8,0.001]
[1759935860041,4.44700237,4457.0,4456.8,0.001]
[1759935860241,3.6348,4457.0,4456.8,0.001]
[1759935860467,3.1896,4457.0,4456.8,0.001]
[1759935861068,3.6348,4457.0,4456.8,0.001]
[1759935862498,3.1906,4457.0,4456.8,0.001]
[1759935862699,3.6358,4457.0,4456.8,0.001]
[1759935863575,3.1906,4457.0,4456.8,2.24471588]
[1759935863781,3.1906,4457.0,4456.8,0.001]
[1759935864172,0.6336,4457.0,4456.9,2.24471199]
[1759935864377,3.1906,4457.0,4456.9,2.24471199]
[1759935864905,2.557,4457.0,4456.9,2.24471199]
[1759935865090,1.92,4457.8,4457.4,2.24345017]
[1759935865091,0.00879484,4457.7,4457.4,2.24345017]
[1759935865291,0.00879484,4457.7,4456.9,0.001]
[1759935865292,0.112,4457.4,4456.9,0.001]
[1759935865974,0.64239484,4457.3,4456.9,2.24468011]
[1759935866319,0.00879484,4457.4,4457.2,2.24356097]
[1759935866621,0.7456,4457.2,4457.1,2.24360493]
[1759935866789,0.7456,4457.2,4456.9,0.001]
[1759935866981,0.00879484,4457.1,4456.9,0.001]
[1759935867295,0.47899484,4457.1,4456.9,0.001]
[1759935867500,0.4702,4457.0,4456.9,0.001]
[1759935868100,0.5822,4457.0,4456.9,0.001]
[1759935868280,0.112,4457.0,4456.9,0.001]
[1759935868481,0.7456,4457.0,4456.9,0.001]
[1759935868794,1.2158,4457.0,4456.9,0.001]
[1759935869510,1.2158,4457.0,4456.9,2.24471199]
[1759935869718,0.7456,4457.0,4456.9,2.24471199]
[1759935870214,0.7476,4457.0,4456.9,2.24471199]
[1759935870611,0.7476,4457.0,4456.9,0.001]
[1759935871021,1.48231965,4457.0,4456.9,0.001]
[1759935871384,1.01211965,4457.0,4456.9,0.001]
[1759935871745,1.48231965,4457.0,4456.9,0.001]
[1759935872390,1.2178,4457.0,4456.9,0.001]
[1759935874593,3.47025649,4457.0,4456.9,0.001]
[1759935874795,1.2178,4457.0,4456.9,0.001]
[1759935875115,1.22659484,4457.0,4456.9,0.001]
[1759935877041,0.7476,4457.0,4456.9,0.001]
[1759935877241,3.3046,4457.0,4456.9,2.24471199]
[1759935878744,3.3046,4457.0,4456.9,0.001]
[1759935878935,3.3046,4457.0,4456.9,2.24471199]
[1759935880619,3.3046,4457.0,4456.9,0.001]
[1759935880929,3.3046,4457.0,4456.9,2.24471199]
[1759935882248,3.30011263,4457.0,4456.9,2.24471199]
[1759935882549,3.29931263,4457.0,4456.9,2.24471199]
[1759935882926,3.29931263,4457.0,4456.9,0.001]
[1759935883131,3.74331263,4457.0,4456.9,0.001]
[1759935883646,3.24931263,4457.0,4456.9,2.24471199]
[1759935884416,2.61571263,4457.0,4456.9,2.24471199]
[1759935885758,3.24931263,4457.0,4456.9,0.001]
[1759935885964,3.69331263,4457.0,4456.9,0.001]
[1759935889062,2.61571263,4457.0,4456.9,2.24471199]
[1759935889228,2.61571263,4457.0,4456.9,0.001]
[1759935889560,0.05871263,4457.0,4456.9,0.001]
[1759935890139,0.05871263,4457.0,4456.9,2.24471199]
[1759935890337,2.61471263,4457.0,4456.9,2.24471199]
[1759935890559,2.61471263,4457.0,4456.9,0.001]
[1759935890768,2.61471263,4457.0,4456.9,2.24471199]
[1759935891847,0.002,4457.0,4456.9,2.69366119]
[1759935892353,0.002,4457.0,4456.9,2.7160983]
[1759935892693,0.002,4457.0,4456.9,2.69366119]
[1759935892884,0.002,4457.0,4456.9,2.24471199]
[1759935894347,0.114,4457.0,4456.9,2.24471199]
[1759935894867,0.002,4457.0,4456.9,2.24471199]
[1759935895284,2.556,4457.4,4457.3,2.24351064]
[1759935895484,2.668,4457.4,4457.3,2.24351064]
[1759935896080,0.002,4457.5,4457.4,2.24346031]
[1759935896469,0.002,4457.5,4457.4,2.26589491]
[1759935896670,0.002,4457.5,4457.4,2.35546031]
[1759935897052,0.002,4457.5,4457.4,2.37789491]
[1759935897465,0.002,4457.5,4457.4,2.35546031]
[1759935897664,0.002,4457.5,4457.4,3.11582812]
[1759935899327,0.002,4457.5,4456.9,0.001]
[1759935899515,1.0683,4457.5,4456.9,0.001]
[1759935899817,0.00879484,4457.4,4457.0,2.24366165]
[1759935900020,0.4327,4457.3,4457.0,2.24366165]
[1759935900220,0.44149484,4457.2,4457.0,2.24366165]
[1759935900530,0.00879484,4457.2,4457.0,2.24366165]
[1759935900693,0.4327,4457.1,4457.0,2.24366165]
[1759935901198,0.4327,4457.1,4456.9,0.001]
[1759935901199,0.6336,4457.0,4456.9,0.001]
[1759935901398,3.68098649,4457.0,4456.9,0.001]
[1759935901607,1.43732484,4457.0,4456.9,0.001]
[1759935902310,3.68098649,4457.0,4456.9,0.001]
[1759935903124,1.43732484,4457.0,4456.9,0.001]
[1759935903492,0.64239484,4457.0,4456.9,0.001]
[1759935903697,1.07509484,4457.0,4456.9,0.001]
[1759935905102,0.6336,4457.0,4456.9,0.001]
[1759935905418,0.002,4457.5,4456.9,0.001]
[1759935905634,0.002,4457.5,4457.4,2.24346031]
[1759935905834,0.002,4457.5,4457.4,2.71459676]
[1759935906345,0.002,4457.5,4457.4,2.69216216]
[1759935906546,0.329,4457.8,4457.7,2.24330932]
[1759935907452,0.6336,4457.7,4456.9,2.24470979]
[1759935907759,0.6336,4457.5,4456.9,0.001]
[1759935907928,0.00799484,4457.4,4456.9,0.001]
[1759935908447,0.002,4457.9,4457.8,2.243259]
[1759935908649,0.002,4457.9,4457.7,2.24327032]
[1759935908943,0.4347,4457.9,4457.7,2.24327921]
[1759935909148,0.4327,4457.8,4457.7,2.24327921]
[1759935909445,0.114,4457.9,4457.8,2.243259]